bitfinex-derivatives/quotes_SOLF0:USTF0_20250419
["timestamp","ask_amount","ask_price","bid_price","bid_amount"]
[1745102393351,12.91619124,139.42,139.36,30.74229124]
[1745102402854,5.74229124,139.42,139.36,30.74229124]
[1745102407355,12.91609124,139.42,139.36,30.74229124]
[1745102412957,5.74229124,139.42,139.36,30.74229124]
[1745102413859,12.91609124,139.42,139.36,30.74229124]
[1745102415758,5.74229124,139.42,139.36,30.74229124]
[1745102417562,12.91609124,139.42,139.36,30.74229124]
[1745102421870,12.91609124,139.42,139.36,5.74229124]
[1745102422271,7.1745,139.41,139.36,5.74229124]
[1745102422772,7.1754,139.39,139.35,25.14]
[1745102422973,5.74229124,139.38,139.34,3.9627]
[1745102423164,5.74229124,139.38,139.33,1.9256]
[1745102423365,7.1764,139.37,139.33,1.9256]
[1745102423667,5.74229124,139.36,139.32,25.14]
[1745102424767,12.91949124,139.36,139.32,25.14]
[1745102427373,5.74229124,139.36,139.32,25.14]
[1745102428274,32.3166,139.37,139.32,25.14]
[1745102428570,38.05889124,139.37,139.32,25.14]
[1745102429575,25.14,139.37,139.32,25.14]
[1745102429776,25.14,139.37,139.33,5.74229124]
[1745102430074,5.74229124,139.38,139.33,5.74229124]
[1745102430377,12.91789124,139.39,139.33,5.74229124]
[1745102436777,7.1764,139.37,139.32,32.87539124]
[1745102437478,7.1764,139.37,139.32,12.87539124]
[1745102438375,7.1761,139.38,139.32,12.87539124]
[1745102442781,12.91789124,139.39,139.32,12.87539124]
[1745102443483,5.74229124,139.39,139.34,5.74229124]
[1745102446080,9.1463,139.42,139.35,25.14]
[1745102446385,5.74229124,139.43,139.36,5.74229124]
[1745102446784,7.1736,139.43,139.36,5.74229124]
[1745102446982,12.91589124,139.43,139.36,5.74229124]
[1745102452690,7.1738,139.42,139.36,5.74229124]
[1745102452888,5.74229124,139.43,139.36,5.74229124]
[1745102453388,12.91589124,139.43,139.36,5.74229124]
[1745102453880,12.91589124,139.43,139.35,28.98]
[1745102454084,5.74229124,139.41,139.36,5.74229124]
[1745102462499,12.91659124,139.41,139.36,5.74229124]
[1745102462797,5.74229124,139.41,139.36,5.74229124]
[1745102464899,12.91589124,139.43,139.36,5.74229124]
[1745102470504,7.1739,139.42,139.36,5.74229124]
[1745102471103,12.91589124,139.43,139.36,5.74229124]
[1745102477309,5.74229124,139.41,139.36,5.74229124]
[1745102477510,5.74229124,139.39,139.35,25.14]
[1745102477711,5.74229124,139.39,139.32,30.82229124]
[1745102478010,12.91799124,139.39,139.32,30.82229124]
[1745102478317,7.1772,139.36,139.32,30.82229124]
[1745102478711,5.74229124,139.37,139.32,30.82229124]
[1745102478905,5.74229124,139.37,139.32,25.08]
[1745102479213,5.74229124,139.35,139.3,5.74229124]
[1745102479506,12.91969124,139.35,139.3,5.74229124]
[1745102479711,5.74229124,139.35,139.3,5.74229124]
[1745102480811,12.91969124,139.35,139.3,5.74229124]
[1745102481011,5.74229124,139.35,139.3,5.74229124]
[1745102481807,12.91979124,139.35,139.3,5.74229124]
[1745102485508,7.1775,139.35,139.3,5.74229124]
[1745102485710,12.91929124,139.36,139.3,5.74229124]
[1745102495511,12.91889124,139.37,139.32,5.74229124]
[1745102497020,25.08,139.38,139.34,5.74229124]
[1745102497221,11.60629124,139.4,139.34,5.74229124]
[1745102497620,18.78119124,139.4,139.34,5.74229124]
[1745102497823,11.60629124,139.4,139.34,5.74229124]
[1745102498421,18.78119124,139.4,139.34,5.74229124]
[1745102507331,7.1756,139.39,139.34,5.74229124]
[1745102507829,18.78149124,139.4,139.34,5.74229124]
[1745102508030,11.60629124,139.4,139.34,5.74229124]
[1745102508327,7.1754,139.39,139.34,5.74229124]
[1745102512229,18.78119124,139.4,139.34,5.74229124]
[1745102512835,7.1757,139.39,139.34,5.74229124]
[1745102513328,9.59749124,139.4,139.34,5.74229124]
[1745102513530,16.77259124,139.4,139.34,5.74229124]
[1745102516436,7.1754,139.39,139.34,5.74229124]
[1745102517734,16.77249124,139.4,139.34,5.74229124]
[1745102518438,9.59749124,139.4,139.34,5.74229124]
[1745102518937,16.77259124,139.4,139.34,5.74229124]
[1745102519937,7.1755,139.39,139.34,5.74229124]
[1745102521438,16.77259124,139.4,139.34,5.74229124]
[1745102522340,9.59749124,139.4,139.34,5.74229124]
[1745102522840,16.77249124,139.4,139.34,5.74229124]
[1745102523636,9.59749124,139.4,139.34,5.74229124]
[1745102524843,16.77239124,139.4,139.34,5.74229124]
[1745102525842,9.59749124,139.4,139.34,5.74229124]
[1745102539154,16.77249124,139.4,139.34,5.74229124]
[1745102548461,9.59749124,139.4,139.34,5.74229124]
[1745102549657,7.1759,139.38,139.34,5.74229124]
[1745102549856,7.1759,139.38,139.33,30.84229124]
[1745102550762,7.1755,139.39,139.33,30.84229124]
[1745102551765,16.77259124,139.4,139.33,30.84229124]
[1745102551962,3.8552,139.4,139.33,30.84229124]
[1745102553266,11.0301,139.4,139.33,30.84229124]
[1745102555366,11.0303,139.4,139.33,30.84229124]
[1745102557667,7.1755,139.39,139.33,30.84229124]
[1745102557866,3.8552,139.4,139.33,30.84229124]
[1745102558966,28.8752,139.4,139.33,30.84229124]
[1745102559268,36.0503,139.4,139.33,30.84229124]
[1745102562372,7.1754,139.39,139.33,30.84229124]
[1745102562872,36.0503,139.4,139.33,30.84229124]
[1745102566778,36.0503,139.4,139.33,5.74229124]
[1745102567777,28.8752,139.4,139.33,5.74229124]
[1745102569079,36.0501,139.4,139.33,5.74229124]
[1745102570080,36.0501,139.4,139.33,30.70229124]
[1745102570379,28.8752,139.4,139.33,30.70229124]
[1745102570881,36.05,139.4,139.33,30.70229124]
[1745102572785,28.8752,139.4,139.33,30.70229124]
[1745102573485,36.0501,139.4,139.33,30.70229124]
[1745102581193,28.8752,139.4,139.35,5.74229124]
[1745102583894,28.8752,139.4,139.33,24.96]
[1745102584197,28.8752,139.4,139.34,5.74229124]
[1745102584495,36.0503,139.4,139.34,5.74229124]
[1745102587896,28.8752,139.4,139.34,5.74229124]
[1745102588095,28.8752,139.4,139.33,24.96]
[1745102588295,28.8752,139.4,139.34,5.74229124]
[1745102588694,36.0502,139.4,139.34,5.74229124]
[1745102590198,28.8752,139.4,139.34,5.74229124]
[1745102591899,1.24876648,139.47,139.38,5.74229124]
[1745102592099,103.50982849,139.51,139.44,5.74229124]
[1745102592301,103.50982849,139.51,139.46,5.74229124]
[1745102593203,103.50982849,139.51,139.49,7.1702]
[1745102593605,103.50982849,139.51,139.46,5.74229124]
[1745102593801,103.50982849,139.51,139.47,7.171]
[1745102594803,1.8659,139.51,139.47,7.171]
[1745102596107,1.8659,139.51,139.46,5.74229124]
[1745102597205,9.0352,139.51,139.46,5.74229124]
[1745102597406,1.8659,139.51,139.44,24.96]
[1745102597604,1.8659,139.51,139.44,30.70229124]
[1745102597905,5.74229124,139.5,139.44,30.70229124]
[1745102599406,7.1708,139.48,139.44,30.70229124]
[1745102603109,7.1713,139.47,139.44,30.70229124]
[1745102603307,5.74229124,139.47,139.42,5.74229124]
[1745102603607,7.1718,139.46,139.42,5.74229124]
[1745102605602,7.1718,139.46,139.41,30.68229124]
[1745102605809,5.74229124,139.47,139.41,24.94]
[1745102606409,7.1727,139.45,139.41,24.94]
[1745102607414,7.172,139.46,139.41,24.94]
[1745102611113,7.1723,139.45,139.41,24.94]
[1745102616416,5.74229124,139.47,139.28,362.24818421]
[1745102616611,24.94,139.48,139.28,362.24818421]
[1745102616612,5.74229124,139.43,139.37,5.74229124]
[1745102617017,7.1751,139.4,139.37,5.74229124]
[1745102621217,7.1755,139.39,139.37,5.74229124]
[1745102622418,5.74229124,139.43,139.37,5.74229124]
[1745102622620,7.1751,139.4,139.37,5.74229124]
[1745102640827,7.1754,139.39,139.37,5.74229124]
[1745102645737,5.74229124,139.43,139.37,5.74229124]
[1745102645738,7.1751,139.4,139.37,5.74229124]
[1745102645938,5.74229124,139.41,139.31,567.9]
[1745102646134,5.74229124,139.39,139.35,5.74229124]
[1745102646539,7.176,139.38,139.35,5.74229124]
[1745102646738,5.74229124,139.39,139.35,5.74229124]
[1745102647038,5.74229124,139.39,139.33,5.74229124]
[1745102647532,7.1765,139.37,139.33,5.74229124]
[1745102652845,7.1761,139.38,139.33,5.74229124]
[1745102656346,30.78229124,139.41,139.35,5.74229124]
[1745102656541,5.74229124,139.43,139.37,5.74229124]
[1745102656850,7.1746,139.41,139.37,5.74229124]
[1745102658252,7.1746,139.41,139.38,7.1756]
[1745102661453,7.1746,139.41,139.39,7.1753]
[1745102661642,7.1746,139.41,139.37,5.74229124]
[1745102661952,7.1746,139.41,139.38,7.1755]
[1745102665854,7.1746,139.41,139.39,7.1754]
[1745102672661,7.1741,139.42,139.39,7.1754]
[1745102673663,7.1744,139.41,139.39,7.1754]
[1745102680168,7.1748,139.4,139.38,7.1758]
[1745102680664,7.1746,139.41,139.38,7.1758]
[1745102688068,12.91689124,139.41,139.38,7.1758]
[1745102691362,7.1748,139.4,139.38,7.1758]
[1745102691668,5.74229124,139.41,139.36,7.1765]
[1745102692168,7.1757,139.39,139.36,7.1765]
[1745102692467,7.1757,139.39,139.37,7.1763]
[1745102692768,7.1757,139.39,139.35,25.04]
[1745102693469,7.1759,139.38,139.36,7.1767]
[1745102701167,12.91789124,139.39,139.36,7.1767]
[1745102702871,7.176,139.38,139.36,7.1767]
[1745102703875,7.1764,139.37,139.35,25.04]
[1745102704171,5.74229124,139.37,139.31,24.96]
[1745102704363,7.1782,139.34,139.31,24.96]
[1745102704767,5.74229124,139.35,139.31,24.96]
[1745102704969,7.178,139.34,139.31,24.96]
[1745102705573,7.1785,139.33,139.29,11.59259124]
[1745102710573,7.1796,139.31,139.28,24.96]
[1745102714079,7.1792,139.32,139.28,24.96]
[1745102718182,7.1795,139.31,139.28,24.96]
[1745102719285,7.1795,139.31,139.26,5.74229124]
[1745102719482,12.92179124,139.31,139.26,5.74229124]
[1745102719981,5.74229124,139.31,139.26,5.74229124]
[1745102720383,7.18,139.3,139.26,5.74229124]
[1745102721083,30.70229124,139.33,139.26,5.74229124]
[1745102721285,30.70229124,139.33,139.25,24.96]
[1745102721482,30.70229124,139.33,139.27,5.74229124]
[1745102721787,7.1795,139.31,139.27,5.74229124]
[1745102723887,5.74229124,139.31,139.25,24.96]
[1745102724389,7.1808,139.29,139.25,24.96]
[1745102725187,7.1804,139.3,139.25,24.96]
[1745102725889,7.1804,139.3,139.24,11.46949124]
[1745102726090,7.1804,139.3,139.24,36.42949124]
[1745102727590,7.1805,139.29,139.24,36.42949124]
[1745102727991,5.74229124,139.31,139.24,36.42949124]
[1745102728188,5.74229124,139.31,139.26,5.74229124]
[1745102728689,12.92209124,139.31,139.26,5.74229124]
[1745102729492,7.18,139.3,139.26,5.74229124]
[1745102731092,7.1808,139.29,139.24,36.42949124]
[1745102731591,7.1813,139.28,139.24,30.70229124]
[1745102732291,12.92309124,139.29,139.24,30.70229124]
[1745102735096,12.92309124,139.29,139.24,5.74229124]
[1745102735893,12.92309124,139.29,139.23,30.72229124]
[1745102738701,5.74229124,139.29,139.23,30.72229124]
[1745102739294,12.92279124,139.29,139.23,30.72229124]
[1745102739597,12.92279124,139.29,139.23,24.98]
[1745102739799,12.92279124,139.29,139.23,30.72229124]
[1745102740097,5.74229124,139.29,139.23,30.72229124]
[1745102744604,7.1802,139.3,139.23,30.72229124]
[1745102744907,5.74229124,139.31,139.25,5.74229124]
[1745102745106,5.74229124,139.31,139.26,24.98]
[1745102757913,5.74229124,139.31,139.26,26.9869]
[1745102762316,7.69949124,139.35,139.29,5.74229124]
[1745102762620,5.74229124,139.35,139.29,30.70229124]
[1745102769325,12.91979124,139.35,139.29,30.70229124]
[1745102770528,5.74229124,139.33,139.29,24.96]
[1745102770824,5.74229124,139.33,139.28,24.96]
[1745102787835,5.74229124,139.35,139.29,5.74229124]
[1745102788035,30.70229124,139.36,139.31,5.74229124]
[1745102788335,5.74229124,139.36,139.31,30.70229124]
[1745102790436,12.91929124,139.36,139.27,3.75]
[1745102790642,5.74229124,139.34,139.28,30.70229124]
[1745102790835,24.96,139.36,139.3,5.74229124]
[1745102791035,30.70229124,139.36,139.3,5.74229124]
[1745102791334,30.70229124,139.36,139.31,1.9623]
[1745102791636,5.74229124,139.36,139.31,26.9223]
[1745102791834,5.74229124,139.37,139.31,26.9223]
[1745102794340,32.1355,139.39,139.32,5.74229124]
[1745102794536,5.74229124,139.38,139.32,5.74229124]
[1745102794837,5.74229124,139.38,139.32,9.57639124]
[1745102797339,12.91839124,139.38,139.32,9.57639124]
[1745102798840,5.74229124,139.38,139.32,9.57639124]
[1745102820760,5.74229124,139.38,139.34,5.74229124]
[1745102836673,32.1354,139.39,139.34,5.74229124]
[1745102837272,24.96,139.39,139.34,5.74229124]
[1745102839874,32.1354,139.39,139.34,5.74229124]
[1745102840081,32.1354,139.39,139.33,30.70229124]
[1745102844483,24.96,139.39,139.33,30.70229124]
[1745102846284,32.1354,139.39,139.33,30.70229124]
[1745102849286,24.96,139.39,139.33,30.70229124]
[1745102849485,37.85739124,139.4,139.33,30.70229124]
[1745102849783,30.68229124,139.4,139.33,30.70229124]
[1745102850285,7.1754,139.39,139.33,30.70229124]
[1745102851588,37.85739124,139.4,139.33,30.70229124]
[1745102853790,24.94,139.4,139.35,5.74229124]
[1745102871105,5.74229124,139.42,139.37,5.74229124]
[1745102871305,30.68229124,139.43,139.37,5.74229124]
[1745102872209,37.85579124,139.43,139.37,5.74229124]
[1745102878614,7.1738,139.42,139.37,5.74229124]
[1745102880317,37.85589124,139.43,139.37,5.74229124]
[1745102888325,24.94,139.43,139.37,5.74229124]
[1745102888528,24.94,139.43,139.39,5.74229124]
[1745102888727,5.9485,139.44,139.39,5.74229124]
[1745102891728,5.9485,139.44,139.39,30.68229124]
[1745102891929,3.916,139.44,139.39,30.68229124]
[1745102902240,3.916,139.44,139.41,5.74229124]
[1745102902440,5.74229124,139.45,139.41,5.74229124]
[1745102902841,12.91459124,139.45,139.41,5.74229124]
[1745102905545,7.1723,139.45,139.41,5.74229124]
[1745102905844,37.85429124,139.46,139.41,5.74229124]
[1745102907148,30.68229124,139.46,139.41,5.74229124]
[1745102908143,37.85459124,139.46,139.39,24.94]
[1745102908449,30.68229124,139.46,139.4,5.74229124]
[1745102908643,30.68229124,139.46,139.39,24.94]
[1745102908949,7.1725,139.45,139.4,5.74229124]
[1745102909246,30.68229124,139.46,139.4,5.74229124]
[1745102909851,37.85429124,139.46,139.4,5.74229124]
[1745102912652,3.9438,139.48,139.42,5.74229124]
[1745102912951,3.9438,139.48,139.42,30.68229124]
[1745102913850,11.1147,139.48,139.42,30.68229124]
[1745102914250,3.9438,139.48,139.42,30.68229124]
[1745102914951,11.1146,139.48,139.42,30.68229124]
[1745102918757,7.1713,139.47,139.42,30.68229124]
[1745102918958,5.74229124,139.47,139.42,30.68229124]
[1745102919460,7.1721,139.46,139.42,30.68229124]
[1745102919858,5.74229124,139.47,139.42,24.94]
[1745102920158,7.1725,139.45,139.42,24.94]
[1745102920360,7.1725,139.45,139.4,5.74229124]
[1745102920559,5.74229124,139.45,139.4,5.74229124]
[1745102920855,5.74229124,139.45,139.39,24.92]
[1745102921053,5.74229124,139.43,139.39,24.92]
[1745102921352,5.74229124,139.43,139.37,573.60229124]
[1745102922256,7.1738,139.42,139.37,573.60229124]
[1745102922459,5.74229124,139.43,139.37,573.60229124]
[1745102922858,12.91599124,139.43,139.37,573.60229124]
[1745102925162,5.74229124,139.43,139.37,573.60229124]
[1745102925362,5.74229124,139.43,139.37,5.74229124]
[1745102926163,7.1742,139.42,139.37,5.74229124]
[1745102927361,5.74229124,139.43,139.37,5.74229124]
[1745102927567,12.91589124,139.43,139.37,5.74229124]
[1745102929366,7.1738,139.42,139.37,5.74229124]
[1745102936874,7.1743,139.41,139.37,5.74229124]
[1745102938773,7.1741,139.42,139.37,5.74229124]
[1745102961193,7.1743,139.41,139.37,5.74229124]
[1745102962696,7.1741,139.42,139.37,5.74229124]
[1745102964599,7.1744,139.41,139.37,5.74229124]
[1745102969800,7.1741,139.42,139.37,5.74229124]
[1745102978705,7.1744,139.41,139.37,5.74229124]
[1745102982808,7.1744,139.41,139.32,361.0]
[1745102982809,30.68229124,139.41,139.32,24.94]
[1745102983007,5.74229124,139.39,139.32,24.94]
[1745102983805,5.74229124,139.37,139.32,24.94]
[1745102984010,7.1772,139.36,139.32,24.94]
[1745102987016,5.74229124,139.37,139.31,5.74229124]
[1745102987417,7.73459124,139.37,139.31,5.74229124]
[1745102987618,7.1785,139.33,139.31,5.74229124]
[1745102987813,7.1785,139.33,139.29,5.74229124]
[1745102993620,7.1782,139.34,139.29,5.74229124]
[1745102994322,7.1786,139.33,139.29,5.74229124]
[1745102995021,7.1788,139.33,139.29,5.74229124]
[1745103000726,7.1795,139.32,139.29,5.74229124]
[1745103000925,30.68229124,139.35,139.29,5.74229124]
[1745103001723,30.68229124,139.35,139.28,30.68229124]
[1745103002423,7.1794,139.32,139.28,30.68229124]
[1745103002826,30.68229124,139.35,139.28,30.68229124]
[1745103004324,7.1794,139.32,139.28,30.68229124]
[1745103005221,5.74229124,139.33,139.26,5.74229124]
[1745103005528,24.94,139.32,139.26,5.74229124]
[1745103005824,7.1808,139.29,139.26,5.74229124]
[1745103008028,7.1811,139.28,139.26,5.74229124]
[1745103008227,5.74229124,139.31,139.26,5.74229124]
[1745103008628,7.1809,139.29,139.26,5.74229124]
[1745103008928,5.74229124,139.31,139.26,5.74229124]
[1745103009132,7.1813,139.28,139.25,24.94]
[1745103009527,7.1813,139.28,139.24,5.74229124]
[1745103010630,7.182,139.27,139.22,30.68229124]
[1745103013634,7.1821,139.26,139.22,30.68229124]
[1745103013932,7.1821,139.26,139.22,24.94]
[1745103014526,5.74229124,139.27,139.21,5.74229124]
[1745103014733,5.74229124,139.25,139.19,30.70229124]
[1745103015135,7.1834,139.24,139.19,30.70229124]
[1745103024043,12.92509124,139.25,139.19,30.70229124]
[1745103024243,24.96,139.29,139.23,5.74229124]
[1745103024744,32.1405,139.29,139.23,5.74229124]
[1745103024940,24.96,139.29,139.23,5.74229124]
[1745103025244,7.1811,139.28,139.23,5.74229124]
[1745103025445,24.96,139.32,139.25,5.74229124]
[1745103025641,30.70229124,139.32,139.25,5.74229124]
[1745103025842,7.1797,139.31,139.25,5.74229124]
[1745103026545,30.70229124,139.32,139.25,5.74229124]
[1745103026744,5.74229124,139.3,139.25,5.74229124]
[1745103028245,12.92259124,139.3,139.25,5.74229124]
[1745103040252,24.96,139.32,139.27,5.74229124]
[1745103041456,32.139,139.32,139.27,5.74229124]
[1745103041855,24.96,139.32,139.27,5.74229124]
[1745103042956,30.70229124,139.32,139.27,5.74229124]
[1745103044057,24.96,139.32,139.27,5.74229124]
[1745103045057,32.139,139.32,139.27,5.74229124]
[1745103046562,24.96,139.32,139.27,5.74229124]
[1745103047962,32.1391,139.32,139.27,5.74229124]
[1745103049768,7.1795,139.31,139.27,5.74229124]
[1745103050063,7.1795,139.31,139.25,30.70229124]
[1745103050664,928.68,139.38,139.29,5.74229124]
[1745103050963,5.74229124,139.36,139.29,5.74229124]
[1745103051558,7.1782,139.34,139.29,5.74229124]
[1745103051864,5.74229124,139.36,139.29,5.74229124]
[1745103052566,7.1782,139.34,139.29,5.74229124]
[1745103054064,7.1778,139.35,139.29,5.74229124]
[1745103054266,5.74229124,139.36,139.29,5.74229124]
[1745103054966,7.1779,139.34,139.29,5.74229124]
[1745103056367,7.1785,139.33,139.29,5.74229124]
[1745103056769,30.70229124,139.32,139.26,5.74229124]
[1745103056958,7.1803,139.3,139.25,5.74229124]
[1745103061367,7.1798,139.31,139.25,5.74229124]
[1745103061567,30.70229124,139.32,139.25,5.74229124]
[1745103062062,37.88149124,139.32,139.25,5.74229124]
[1745103062870,7.1795,139.31,139.25,5.74229124]
[1745103068976,30.70229124,139.32,139.25,5.74229124]
[1745103070280,37.88149124,139.32,139.25,5.74229124]
[1745103071485,32.1392,139.32,139.25,5.74229124]
[1745103073989,7.1797,139.31,139.25,5.74229124]
[1745103077286,7.1801,139.3,139.25,5.74229124]
[1745103077888,7.1798,139.31,139.25,5.74229124]
[1745103081195,7.18,139.3,139.25,5.74229124]
[1745103081490,28.9316,139.32,139.25,5.74229124]
[1745103081689,7.1797,139.31,139.25,5.74229124]
[1745103084589,7.1802,139.3,139.25,5.74229124]
[1745103084795,7.1802,139.3,139.24,30.70229124]
[1745103092999,24.96,139.32,139.26,5.74229124]
[1745103093497,32.1392,139.32,139.26,5.74229124]
[1745103111319,32.1392,139.32,139.26,30.70229124]
[1745103114517,1.24943901,139.38,139.3,5.74229124]
[1745103114722,101.89917043,139.45,139.36,5.74229124]
[1745103114921,101.89917043,139.45,139.42,7.1738]
[1745103115122,107.64146167,139.45,139.38,5.74229124]
[1745103115417,107.64146167,139.45,139.41,7.1739]
[1745103115618,75.10558028,139.44,139.41,7.1739]
[1745103115823,5.74229124,139.43,139.37,24.96]
[1745103116321,9.73989124,139.43,139.37,24.96]
[1745103116923,16.91349124,139.43,139.37,24.96]
[1745103119525,16.91349124,139.43,139.38,5.74229124]
[1745103120426,9.73989124,139.43,139.38,5.74229124]
[1745103121128,37.87479124,139.45,139.38,5.74229124]
[1745103121328,37.87479124,139.45,139.4,5.74229124]
[1745103121628,30.70229124,139.45,139.4,5.74229124]
[1745103122828,7.1729,139.44,139.4,5.74229124]
[1745103123128,30.70229124,139.45,139.38,5.74229124]
[1745103123830,7.1731,139.44,139.38,5.74229124]
[1745103124230,30.70229124,139.45,139.4,5.74229124]
[1745103124629,37.87479124,139.45,139.4,5.74229124]
[1745103124829,30.70229124,139.45,139.4,5.74229124]
[1745103125929,7.1728,139.44,139.4,5.74229124]
[1745103128431,32.1325,139.45,139.4,5.74229124]
[1745103136333,7.1728,139.44,139.4,5.74229124]
[1745103138437,5.74229124,139.44,139.38,5.74229124]
[1745103138637,5.74229124,139.42,139.36,30.82229124]
[1745103138838,30.82229124,139.42,139.36,30.82229124]
[1745103139040,7.1751,139.4,139.36,30.82229124]
[1745103139239,30.82229124,139.42,139.36,5.74229124]
[1745103139638,7.1752,139.4,139.36,5.74229124]
[1745103140340,7.1754,139.39,139.36,5.74229124]
[1745103144344,7.1751,139.4,139.36,5.74229124]
[1745103154444,30.82229124,139.42,139.35,5.74229124]
[1745103155348,7.1751,139.4,139.35,5.74229124]
[1745103155646,30.82229124,139.42,139.35,5.74229124]
[1745103155848,7.1751,139.4,139.35,5.74229124]
[1745103157051,25.08,139.42,139.35,5.74229124]
[1745103157253,25.08,139.42,139.37,5.74229124]
[1745103157655,25.08,139.42,139.39,5.74229124]
[1745103157954,3.6919,139.43,139.39,5.74229124]
[1745103159255,10.8653,139.43,139.39,5.74229124]
[1745103159448,10.8653,139.43,139.37,5.74229124]
[1745103160554,7.1739,139.42,139.37,5.74229124]
[1745103162056,7.1745,139.41,139.37,5.74229124]
[1745103162755,12.91629124,139.42,139.37,5.74229124]
[1745103165158,10.8654,139.43,139.37,5.74229124]
[1745103168454,7.1743,139.41,139.36,24.98]
[1745103169058,7.1743,139.41,139.36,30.72229124]
[1745103170867,37.89639124,139.42,139.36,30.72229124]
[1745103171167,30.72229124,139.42,139.36,24.98]
[1745103171364,7.1746,139.41,139.36,30.72229124]
[1745103171757,7.1746,139.41,139.36,24.98]
[1745103171960,7.1746,139.41,139.36,30.72229124]
[1745103176767,7.1749,139.4,139.36,30.72229124]
[1745103177268,7.1754,139.39,139.36,30.72229124]
[1745103177466,7.1754,139.39,139.36,5.74229124]
[1745103183274,7.1761,139.38,139.33,26.8542]
[1745103183474,5.74229124,139.4,139.33,32.59649124]
[1745103183678,24.98,139.39,139.33,30.72229124]
[1745103183871,7.1765,139.37,139.33,30.72229124]
[1745103184976,7.177,139.36,139.33,30.72229124]
[1745103185177,7.177,139.36,139.31,9.64209124]
[1745103188176,7.1775,139.35,139.31,5.74229124]
[1745103189877,32.5571,139.36,139.31,5.74229124]
[1745103208287,25.38,139.36,139.31,5.74229124]
[1745103208486,25.38,139.36,139.3,25.38]
[1745103208686,25.38,139.36,139.32,5.74229124]
[1745103213993,4.0441,139.38,139.34,5.74229124]
[1745103217892,32.5556,139.39,139.34,5.74229124]
[1745103218097,25.38,139.39,139.36,5.74229124]
[1745103219898,7.1749,139.4,139.36,5.74229124]
[1745103221501,32.4145,139.41,139.36,5.74229124]
[1745103222903,7.1749,139.4,139.36,5.74229124]
[1745103231218,32.4146,139.41,139.36,5.74229124]
[1745103237822,7.1748,139.4,139.36,5.74229124]
[1745103240327,32.4146,139.41,139.36,5.74229124]
[1745103241028,25.24,139.41,139.38,5.74229124]
[1745103249933,3.8326,139.43,139.38,5.74229124]
[1745103250329,7.1738,139.42,139.38,5.74229124]
[1745103256550,11.0061,139.43,139.38,5.74229124]
[1745103258157,7.1738,139.42,139.38,5.74229124]
[1745103260356,7.1738,139.42,139.36,25.1]
[1745103260556,7.1744,139.41,139.37,5.74229124]
[1745103261558,7.1741,139.42,139.37,5.74229124]
[1745103262257,7.1743,139.41,139.37,5.74229124]
[1745103263057,7.1741,139.42,139.37,5.74229124]
[1745103264060,7.1743,139.41,139.37,5.74229124]
[1745103267965,7.1741,139.42,139.37,5.74229124]
[1745103269969,11.0062,139.43,139.37,5.74229124]
[1745103270467,7.1739,139.42,139.37,5.74229124]
[1745103273672,11.0061,139.43,139.37,5.74229124]
[1745103274272,7.1739,139.42,139.37,5.74229124]
[1745103276481,11.0061,139.43,139.37,5.74229124]
[1745103278083,7.1738,139.42,139.37,5.74229124]
[1745103278678,11.0061,139.43,139.37,5.74229124]
[1745103279276,3.8326,139.43,139.37,5.74229124]
[1745103279480,7.1739,139.42,139.37,5.74229124]
[1745103288387,36.1863,139.43,139.37,5.74229124]
[1745103288589,29.0126,139.43,139.37,5.74229124]
[1745103288989,7.1739,139.42,139.37,5.74229124]
[1745103301494,32.3535,139.43,139.37,5.74229124]
[1745103302394,7.1738,139.42,139.37,5.74229124]
[1745103308498,32.3535,139.43,139.37,5.74229124]
[1745103309497,7.1739,139.42,139.37,5.74229124]
[1745103309893,25.18,139.43,139.37,5.74229124]
[1745103310099,32.3537,139.43,139.37,5.74229124]
[1745103314405,7.1739,139.42,139.37,5.74229124]
[1745103315302,25.18,139.43,139.37,5.74229124]
[1745103315509,25.18,139.43,139.39,5.74229124]
[1745103315708,5.74229124,139.45,139.39,5.74229124]
[1745103316308,7.1731,139.44,139.39,5.74229124]
[1745103317913,7.13571651,139.44,139.39,5.74229124]
[1745103323618,12.91489124,139.45,139.39,5.74229124]
[1745103336126,7.1728,139.44,139.39,5.74229124]
[1745103340635,7.1726,139.45,139.39,5.74229124]
[1745103341137,7.1728,139.44,139.39,5.74229124]
[1745103344333,7.1725,139.45,139.39,5.74229124]
[1745103344638,30.84229124,139.46,139.39,5.74229124]
[1745103344833,7.1728,139.44,139.39,5.74229124]